fUST/lending_fUST_20250124
["ID","MTS","AMOUNT","RATE_DAILY","PERIOD"]
[350229354,1737715843323,-500.0,0.00019099,2]
[350229355,1737715843331,-500.0,0.00019099,2]
[350229356,1737715843340,-500.0,0.00019099,2]
[350229357,1737715843349,-500.0,0.00019099,2]
[350229358,1737715843358,-500.0,0.00019099,2]
[350229359,1737715843367,-500.0,0.00019099,2]
[350229360,1737715843376,-500.0,0.00019099,2]
[350229361,1737715843385,-500.0,0.00019099,2]
[350229362,1737715843394,-500.0,0.00019099,2]
[350229363,1737715843403,-500.0,0.00019099,2]
[350229364,1737715843412,-500.0,0.00019099,2]
[350229365,1737715843421,-500.0,0.00019099,2]
[350229366,1737715843430,-500.0,0.00019099,2]
[350229367,1737715843439,-650.0,0.00019099,2]
[350229368,1737715843448,-408.76277299,0.000191,5]
[350229369,1737715843459,-1689.61810473,0.000191,5]
[350229370,1737715843471,-5137.09836031,0.000191,5]
[350229371,1737715843479,-2374.07449431,0.000191,5]
[350229372,1737715843489,-15666.54734026,0.000191,15]
[350229424,1737715846530,-171774.30067343,0.000191,15]
[350229760,1737715982154,200.0,0.00024,120]
[350229761,1737716039307,412.0,0.00024,120]
[350229762,1737716054001,1000.0,0.00024,120]
[350229809,1737717032569,-234.155462,0.00017319,2]
[350229810,1737717032579,-234.155462,0.0001803,2]
[350229811,1737717032589,-475.457,0.0001814,2]
[350229812,1737717032598,-468.623,0.00018718,2]
[350229813,1737717032608,-259.953,0.00018803,2]
[350229814,1737717032619,-558.94582696,0.00018823,2]
[350229815,1737717032629,-326.0559246,0.00018908,2]
[350229816,1737717032639,-2388.74243107,0.00018955,2]
[350229817,1737717032648,-300.0,0.00018999,2]
[350229818,1737717032657,-400.0,0.00019,2]
[350229819,1737717032667,-1686.13361487,0.00019,2]
[350229820,1737717032676,-832.15460576,0.00019,2]
[350229821,1737717032685,-311.3279011,0.00019,2]
[350229822,1737717032695,-515.2211788,0.00019099,2]
[350229824,1737717032704,-3617.73961901,0.000191,5]
[350229826,1737717032713,-150104.49096822,0.000191,15]
[350229829,1737717032736,-1187.03724716,0.000191,5]
[350229831,1737717032745,-783.25721688,0.000191,15]
[350229879,1737717038402,-442.54328143,0.000191,15]
[350229880,1737717038454,-13573.2153469,0.000191,15]
[350229881,1737717038513,-3579.72747579,0.000191,15]
[350229882,1737717038524,-535.77476444,0.000191,15]
[350229883,1737717038536,-2652.46156252,0.000191,15]
[350229922,1737717040552,-2585.77102743,0.000191,15]
[350230503,1737717046556,-903.31230661,0.00018909,2]
[350230555,1737717145253,151.0,0.00024,120]
[350230556,1737717162968,151.0,0.00024,120]
[350230557,1737717175550,151.0,0.00024,120]
[350230558,1737717197660,151.0,0.00024,120]
[350230559,1737717221965,181.4,0.00024,120]
[350230680,1737718238626,-203.142631,0.00016251,2]
[350230682,1737718238636,-129.742372,0.00016415,2]
[350230688,1737718238679,-73.400259,0.00016415,2]
[350230690,1737718238689,-252.085266,0.00017355,2]
[350230692,1737718238698,-250.0,0.00017593,2]
[350230694,1737718238711,-119.69096506,0.00018012,2]
[350230696,1737718238723,-139.26766594,0.00018012,2]
[350230698,1737718238732,-300.0,0.00018022,2]
[350230701,1737718238743,-231.62971955,0.00018023,2]
[350230704,1737718238757,-825.875,0.00018023,2]
[350230706,1737718238768,-862.97452756,0.00018023,2]
[350230711,1737718238780,-6819.23909428,0.00018023,2]
[350230765,1737718240878,-1076.64609111,0.00018023,2]
[350230767,1737718240888,-455.48,0.0001814,2]
[350230769,1737718240897,-178.03,0.00018764,2]
[350230771,1737718240906,-795.69,0.00018862,2]
[350230773,1737718240916,-163.0279623,0.00018908,2]
[350230775,1737718240925,-1517.52025332,0.00019,2]
[350230777,1737718240935,-18167.31823496,0.00019,2]
[350230779,1737718240944,-8893.74791123,0.000191,5]
[350230782,1737718240956,-2788.58714046,0.000191,5]
[350230784,1737718240965,-376.4939937,0.000191,5]
[350230962,1737718243678,-926.60101591,0.000191,5]
[350230963,1737718243733,-4976.23939611,0.000191,5]
[350230964,1737718243742,-12890.95491796,0.000191,15]
[350230965,1737718243754,-1037.36267487,0.000191,15]
[350230966,1737718243766,-524.21302376,0.000191,15]
[350230967,1737718243777,-925.35637392,0.000191,15]
[350230968,1737718243789,-1287.64815953,0.000191,15]
[350230969,1737718243800,-38715.38428591,0.000191,15]
[350230990,1737718246805,-1590.82221907,0.00018909,2]
[350230991,1737718246814,-2124.83083427,0.000191,15]
[350230992,1737718246970,-2560.73172906,0.000191,15]
[350230994,1737718974910,180.766678,0.00013973,2]
[350231035,1737719431917,-186.402,0.00016506,2]
[350231037,1737719431927,-186.402,0.00016673,2]
[350231038,1737719431937,-252.085267,0.00018058,2]
[350231039,1737719431947,-436.472,0.0001814,2]
[350231041,1737719431956,-469.69729135,0.00018776,2]
[350231043,1737719431966,-300.0,0.00018899,2]
[350231044,1737719431975,-575.82719072,0.000189,2]
[350231045,1737719431985,-191.1480875,0.000189,2]
[350231046,1737719431997,-212.7892497,0.000189,2]
[350231047,1737719432008,-352.9591083,0.000189,2]
[350231048,1737719432017,-385.3137431,0.000189,2]
[350231049,1737719432028,-163.0279624,0.00018908,2]
[350231050,1737719432037,-1365.76822806,0.00019,2]
[350231051,1737719432047,-311.226929,0.00019,2]
[350231052,1737719432057,-728.13528004,0.00019,2]
[350231053,1737719432067,-158.47,0.00019099,2]
[350231054,1737719432077,-500.0,0.00019099,2]
[350231055,1737719432087,-500.0,0.00019099,2]
[350231056,1737719432097,-500.0,0.00019099,2]
[350231057,1737719432110,-500.0,0.00019099,2]
[350231058,1737719432120,-200.0,0.00019099,2]
[350231059,1737719432130,-605.05153936,0.00019099,2]
[350231060,1737719432140,-500.0,0.00019099,2]
[350231061,1737719432151,-235.25705843,0.00019099,2]
[350231062,1737719432160,-500.0,0.00019099,2]
[350231063,1737719432170,-500.0,0.00019099,2]
[350231064,1737719432181,-500.0,0.00019099,2]
[350231065,1737719432190,-5841.16752585,0.000191,5]
[350231066,1737719432200,-3139.66720286,0.000191,5]
[350231067,1737719432209,-36731.35374181,0.000191,15]
[350231262,1737719445835,-679.32288877,0.00018174,2]
[350231264,1737719445845,-679.32288877,0.00018358,2]
[350231265,1737719445854,-1000.0,0.00018543,2]
[350231266,1737719445864,-12214.41622799,0.000191,15]
[350231267,1737719445888,-311.645186,0.000191,15]
[350231268,1737719445903,-9735.62028444,0.000191,15]
[350231276,1737719925290,180.766678,0.00013973,2]
[350231277,1737720133741,1254.0,0.00024,120]
[350231293,1737720632102,-243.9769039,0.00017629,2]
[350231295,1737720632113,-300.0,0.00017807,2]
[350231297,1737720632123,-170.138386,0.00017808,2]
[350231298,1737720632132,-500.0,0.00017808,2]
[350231308,1737720632238,-500.0,0.00017808,2]
[350231310,1737720632247,-500.0,0.00017808,2]
[350231311,1737720632257,-500.0,0.00017808,2]
[350231313,1737720632266,-406.44231865,0.00017808,2]
[350231315,1737720632276,-243.9769039,0.00018029,2]
[350231317,1737720632284,-434.92,0.0001814,2]
[350231318,1737720632294,-6099.15736546,0.00018789,2]
[350231320,1737720632303,-168.303655,0.00018908,2]
[350231322,1737720632312,-672.57487143,0.00018998,2]
[350231324,1737720632322,-153.0,0.00019,2]
[350231326,1737720632332,-153.0,0.00019,2]
[350231327,1737720632341,-153.0,0.00019,2]
[350231329,1737720632351,-151.0,0.00019098,2]
[350231331,1737720632360,-500.0,0.00019098,2]
[350231333,1737720632369,-241.67685488,0.00019098,2]
[350231335,1737720632378,-500.0,0.00019098,2]
[350231336,1737720632387,-156.1729452,0.00019098,2]
[350231338,1737720632397,-500.0,0.00019098,2]
[350231339,1737720632406,-203.95887554,0.00019098,2]
[350231340,1737720632415,-238.8334181,0.00019098,2]
[350231341,1737720632425,-500.0,0.00019098,2]
[350231342,1737720632435,-500.0,0.00019098,2]
[350231343,1737720632444,-500.0,0.00019098,2]
[350231344,1737720632453,-651.16524792,0.00019098,2]
[350231345,1737720632462,-500.0,0.00019098,2]
[350231346,1737720632471,-500.0,0.00019098,2]
[350231347,1737720632480,-500.0,0.00019098,2]
[350231348,1737720632491,-500.0,0.00019098,2]
[350231349,1737720632501,-500.0,0.00019098,2]
[350231350,1737720632510,-500.0,0.00019098,2]
[350231351,1737720632521,-500.0,0.00019098,2]
[350231352,1737720632530,-500.0,0.00019098,2]
[350231353,1737720632540,-500.0,0.00019098,2]
[350231354,1737720632550,-500.0,0.00019098,2]
[350231355,1737720632559,-500.0,0.00019098,2]
[350231356,1737720632569,-500.0,0.00019098,2]
[350231357,1737720632578,-500.0,0.00019098,2]
[350231358,1737720632587,-500.0,0.00019098,2]
[350231359,1737720632596,-500.0,0.00019098,2]
[350231360,1737720632605,-500.0,0.00019098,2]
[350231361,1737720632614,-500.0,0.00019098,2]
[350231362,1737720632624,-500.0,0.00019098,2]
[350231363,1737720632633,-500.0,0.00019098,2]
[350231364,1737720632642,-500.0,0.00019098,2]
[350231365,1737720632651,-500.0,0.00019098,2]
[350231366,1737720632661,-500.0,0.00019098,2]
[350231367,1737720632670,-500.0,0.00019098,2]
[350231368,1737720632680,-209.40508137,0.00019098,2]
[350231369,1737720632689,-500.0,0.00019098,2]
[350231370,1737720632699,-500.0,0.00019098,2]
[350231371,1737720632708,-500.0,0.00019098,2]
[350231372,1737720632717,-500.0,0.00019098,2]
[350231373,1737720632727,-500.0,0.00019098,2]
[350231374,1737720632736,-500.0,0.00019098,2]
[350231375,1737720632745,-148.50229264,0.00019098,2]
[350231376,1737720632762,-351.49770736,0.00019098,2]
[350231377,1737720632772,-137.17486596,0.00019098,2]
[350231416,1737720639490,-473.84091523,0.00019098,2]
[350231418,1737720639502,-2920.58376292,0.00019099,5]
[350231419,1737720639512,-1569.83360143,0.00019099,5]
[350231420,1737720639521,-37382.7796496,0.00019099,7]
[350231455,1737720643291,-1779.17,0.00019099,7]
[350231464,1737720646107,-333.65201116,0.00019,2]
[350232097,1737721382420,3700.0,0.00015056,2]
[350232135,1737721832323,-192.51638195,0.0001691,2]
[350232136,1737721832333,-469.56918857,0.00017254,2]
[350232137,1737721832343,-351.9721913,0.00017529,2]
[350232138,1737721832353,-170.138386,0.00017808,2]
[350232139,1737721832363,-300.0,0.00017813,2]
[350232140,1737721832372,-17080.6868669,0.00017814,2]
[350232141,1737721832381,-433.647,0.0001814,2]
[350232142,1737721832391,-201.0,0.00018703,2]
[350232143,1737721832400,-172.51,0.00018829,2]
[350232144,1737721832410,-383.88479381,0.000189,2]
[350232145,1737721832420,-168.3036551,0.00018908,2]
[350232146,1737721832429,-697.98257864,0.00018968,2]
[350232147,1737721832438,-225.02,0.00018997,2]
[350232148,1737721832450,-12244.05840212,0.00019,2]
[350232149,1737721832466,-500.0,0.00019068,2]
[350232150,1737721832480,-157.79,0.00019097,2]
[350232151,1737721832491,-156.84842839,0.00019098,2]
[350232152,1737721832505,-500.0,0.00019098,2]
[350232153,1737721832519,-500.0,0.00019098,2]
[350232154,1737721832533,-500.0,0.00019098,2]
[350232155,1737721832546,-500.0,0.00019098,2]
[350232156,1737721832560,-517.29050814,0.00019098,2]
[350232157,1737721832574,-500.0,0.00019098,2]
[350232158,1737721832585,-500.0,0.00019098,2]
[350232159,1737721832598,-500.0,0.00019098,2]
[350232160,1737721832611,-500.0,0.00019098,2]
[350232161,1737721832624,-402.35374581,0.00019098,2]
[350232162,1737721832637,-500.0,0.00019098,2]
[350232163,1737721832651,-500.0,0.00019098,2]
[350232164,1737721832664,-641.1712438,0.00019098,2]
[350232165,1737721832677,-500.0,0.00019098,2]
[350232166,1737721832691,-500.0,0.00019098,2]
[350232167,1737721832705,-500.0,0.00019098,2]
[350232168,1737721832719,-500.0,0.00019098,2]
[350232169,1737721832733,-500.0,0.00019098,2]
[350232170,1737721832745,-500.0,0.00019098,2]
[350232171,1737721832758,-500.0,0.00019098,2]
[350232172,1737721832771,-500.0,0.00019098,2]
[350232173,1737721832784,-1460.29188147,0.00019099,5]
[350232174,1737721832795,-784.91680071,0.00019099,5]
[350232175,1737721832807,-461598.2238714,0.00019099,7]
[350232176,1737721832818,-437.273,0.00019099,2]
[350232177,1737721832835,-484.186524,0.00019099,2]
[350232178,1737721832849,-484.186524,0.00019099,2]
[350232179,1737721832860,-166.981322,0.00019099,2]
[350232180,1737721832871,-166.981322,0.00019099,2]
[350232181,1737721832889,-151.0,0.00019099,2]
[350232182,1737721832901,-1094500.74196195,0.000191,15]
[350232226,1737721838115,-5737.17911316,0.000191,15]
[350232232,1737721838172,-32331.43877514,0.000191,15]
[350232488,1737721842187,-360.65528536,0.00018999,2]
[350232490,1737721842196,-1638.80325464,0.000191,15]
[350232502,1737721842298,-306.36913898,0.000191,15]
[350232619,1737721843173,-13738.13420343,0.000191,15]
[350233117,1737722742512,-38479.0,0.000191,15]
[350233118,1737722762104,-104034.0,0.000191,15]
[350233171,1737722859317,-317461.0,0.000191,15]
[350233211,1737723032700,-180.674845,0.00016808,2]
[350233213,1737723032710,-180.674845,0.00016978,2]
[350233215,1737723032720,-180.674845,0.00017497,2]
[350233218,1737723032730,-2010.1354647,0.00017637,2]
[350233220,1737723032740,-191.75748131,0.00017923,2]
[350233222,1737723032749,-295.13,0.00018023,2]
[350233224,1737723032759,-300.0,0.00018032,2]
[350233226,1737723032768,-24900.0,0.00018033,2]
[350233228,1737723032778,-191.7574813,0.0001804,2]
[350233230,1737723032787,-431.438,0.0001814,2]
[350233232,1737723032796,-474.20023666,0.00018199,2]
[350233234,1737723032806,-157.35,0.000186,2]
[350233236,1737723032815,-661.5357095,0.00018808,2]
[350233238,1737723032825,-255.92319587,0.000189,2]
[350233240,1737723032834,-168.3036551,0.00018908,2]
[350233242,1737723032844,-706.77,0.00019,2]
[350233244,1737723032853,-7858.20707711,0.00019,2]
[350233639,1737723038344,-122.88770559,0.00018199,2]
[350233640,1737723038363,-513.41840217,0.00018199,2]
[350233641,1737723038373,-1353.09734519,0.00019,2]
[350233642,1737723038382,-500.0,0.00019068,2]
[350233643,1737723038391,-519.17379841,0.00019099,2]
[350233644,1737723038400,-525.18839884,0.00019099,2]
[350233645,1737723038410,-134.06554598,0.00019099,2]
[350234801,1737723635128,6770.95204283,0.00024,120]
[350234894,1737724009562,461.734703,0.00016131,2]
[350235061,1737724193204,461.734703,0.00016131,2]
[350235098,1737724236917,-160.602387,0.0001763,2]
[350235100,1737724236926,-160.602387,0.00017808,2]
[350235102,1737724236935,-413.567,0.0001814,2]
[350235104,1737724236945,-168.3036551,0.00018908,2]
[350235107,1737724236955,-4000.0,0.00019,2]
[350235110,1737724236966,-578.84374583,0.00019,2]
[350235112,1737724236975,-197.0,0.00019034,2]
[350235115,1737724236984,-300.0,0.00019098,2]
[350235118,1737724236994,-365.93445402,0.00019099,2]
[350235121,1737724237004,-617.05766597,0.00019099,2]
[350235123,1737724237014,-500.0,0.00019099,2]
[350235125,1737724237023,-500.0,0.00019099,2]
[350235127,1737724237033,-375.2187025,0.00019099,2]
[350235129,1737724237043,-293.32467426,0.00019099,2]
[350235131,1737724237052,-6181.16,0.00019099,2]
[350235133,1737724237062,-402.61,0.00019099,2]
[350235135,1737724237071,-5169.46201966,0.00019099,5]
[350235137,1737724237081,-52584.31073091,0.000191,5]
[350235139,1737724237090,-10581.72734895,0.000191,15]
[350235262,1737724238477,-1036.134,0.000191,15]
[350235265,1737724238490,-108040.40349103,0.000191,15]
[350235267,1737724238502,-57834.62498687,0.000191,15]
[350235269,1737724238514,-582.07103735,0.000191,15]
[350235275,1737724238561,-740.53,0.000191,15]
[350235300,1737724238787,-95710.04885434,0.000191,15]
[350235302,1737724238799,-9216.45234021,0.000191,15]
[350235698,1737724243682,-160.602387,0.00017454,2]
[350235699,1737724243692,-401.315,0.00018827,2]
[350235700,1737724243701,-18937.10326973,0.000191,15]
[350235782,1737724246587,-37300.18530992,0.000191,15]
[350235944,1737724293049,-12289.0,0.000191,15]
[350235945,1737724323907,-500.0,0.000191,15]
[350235946,1737724613320,162.3889594,0.00013973,2]
[350235980,1737725274866,424.84278194,0.00016,2]
[350235981,1737725320989,46799.96617901,0.00024,120]
[350236080,1737725438812,-179.373033,0.00016935,2]
[350236081,1737725438822,-683.29678528,0.00017528,2]
[350236082,1737725438833,-49.69431492,0.00017528,2]
[350236083,1737725438843,-223.7104265,0.00017584,2]
[350236084,1737725438852,-296.555579,0.00017612,2]
[350236085,1737725438861,-45.21258379,0.00017714,2]
[350236086,1737725438872,-254.78741621,0.00017714,2]
[350236087,1737725438881,-55.87809858,0.00017715,2]
[350236138,1737725441099,-8994.65744022,0.00017715,2]
[350236140,1737725441108,-655.6281203,0.00017788,2]
[350236142,1737725441118,-179.373033,0.00017808,2]
[350236144,1737725441127,-341.992069,0.00017833,2]
[350236146,1737725441137,-150.298728,0.000181,2]
[350236148,1737725441147,-416.268,0.0001814,2]
[350236150,1737725441156,-1000.0,0.00018418,2]
[350236152,1737725441167,-836.43755175,0.0001869,2]
[350236154,1737725441176,-198.05,0.00018886,2]
[350236156,1737725441185,-170.61546392,0.000189,2]
[350236158,1737725441194,-157.35,0.00019016,2]
[350236160,1737725441203,-202.7843644,0.00019061,2]
[350236162,1737725441212,-500.0,0.00019068,2]
[350236164,1737725441222,-500.0,0.00019099,2]
[350236166,1737725441231,-500.0,0.00019099,2]
[350236168,1737725441241,-500.0,0.00019099,2]
[350236170,1737725441250,-500.0,0.00019099,2]
[350236172,1737725441259,-419.08633192,0.00019099,2]
[350236174,1737725441269,-500.0,0.00019099,2]
[350236176,1737725441278,-500.0,0.00019099,2]
[350236178,1737725441288,-500.0,0.00019099,2]
[350236180,1737725441297,-500.0,0.00019099,2]
[350236182,1737725441306,-500.0,0.00019099,2]
[350236184,1737725441315,-500.0,0.00019099,2]
[350236186,1737725441324,-500.0,0.00019099,2]
[350236188,1737725441334,-500.0,0.00019099,2]
[350236190,1737725441343,-608.2557801,0.00019099,2]
[350236192,1737725441352,-500.0,0.00019099,2]
[350236194,1737725441361,-500.0,0.00019099,2]
[350236196,1737725441370,-500.0,0.00019099,2]
[350236198,1737725441380,-500.0,0.00019099,2]
[350236200,1737725441389,-500.0,0.00019099,2]
[350236203,1737725441398,-500.0,0.00019099,2]
[350236204,1737725441407,-419.38636622,0.00019099,2]
[350236207,1737725441418,-500.0,0.00019099,2]
[350236209,1737725441427,-500.0,0.00019099,2]
[350236210,1737725441436,-500.0,0.00019099,2]
[350236213,1737725441445,-500.0,0.00019099,2]
[350236215,1737725441454,-492.00579464,0.00019099,2]
[350236217,1737725441464,-366.177,0.00019099,2]
[350236219,1737725441473,-6854.35370263,0.000191,5]
[350237575,1737725456366,162.616745,0.00013973,2]
[350237924,1737725479781,7021.0,0.00024,120]
[350237925,1737725877124,5000.0,0.00024,120]
[350237926,1737726135361,1000.0,0.00024,120]
[350237928,1737726328286,162.842845,0.00013973,2]
[350237929,1737726405324,179.373033,0.00016105,2]
[350238013,1737726588459,179.373033,0.00016105,2]
[350238038,1737726632019,-167.48112243,0.00017496,2]
[350238039,1737726632029,-1909.9204154,0.00017672,2]
[350238040,1737726632039,-179.373033,0.00017808,2]
[350238041,1737726632048,-255.095839,0.00017849,2]
[350238042,1737726632057,-398.888,0.0001814,2]
[350238043,1737726632066,-2000.000001,0.000185,2]
[350238044,1737726632075,-165.647504,0.00018616,3]
[350238045,1737726632084,-1000.0,0.00018833,2]
[350238046,1737726632093,-158.04184592,0.0001893,2]
[350238047,1737726632102,-300.0,0.00018999,2]
[350238048,1737726632112,-3967.11578148,0.00019,2]
[350238049,1737726632121,-16711.10363028,0.00019,2]
[350238050,1737726632130,-600.0,0.00019,2]
[350238051,1737726632140,-157.35,0.00019,2]
[350238052,1737726632149,-10899.99440548,0.00019,2]
[350238053,1737726632158,-155.349277,0.00019015,2]
[350238054,1737726632167,-250.21619049,0.00019073,2]
[350238055,1737726632176,-500.0,0.00019073,2]
[350238056,1737726632185,-1000.0,0.00019095,2]
[350238057,1737726632194,-292.942,0.00019097,2]
[350238058,1737726632203,-16255.47461479,0.000191,5]
[350238059,1737726632215,-811.05226961,0.000191,5]
[350238060,1737726635695,-5052.79699349,0.00019099,5]
[350238061,1737726635704,-12595.41109037,0.000191,5]
[350238094,1737726637963,-713.55829975,0.000191,5]
[350238204,1737726640065,-3003.9,0.000191,5]
[350238389,1737727406965,1814.49552641,0.00016144,2]
[350238390,1737727589779,1814.49552641,0.00016144,2]
[350238495,1737727832381,-2371.227583,0.00016472,2]
[350238497,1737727832391,-2371.227583,0.00016806,2]
[350238499,1737727832401,-300.0,0.00016993,2]
[350238501,1737727832411,-6172.4153661,0.00016995,2]
[350238503,1737727832419,-211.647725,0.00017066,2]
[350238505,1737727832429,-179.373033,0.00017808,2]
[350238507,1737727832438,-24900.0,0.00018056,2]
[350238509,1737727832449,-382.32,0.0001814,2]
[350238511,1737727832459,-420.0,0.00018561,2]
[350238513,1737727832468,-401.315,0.0001881,2]
[350238515,1737727832477,-1000.0,0.00018838,2]
[350238517,1737727832487,-155.349277,0.00018856,2]
[350238520,1737727832496,-245.85917975,0.000189,2]
[350238522,1737727832505,-446.96510757,0.00018962,2]
[350238813,1737727846284,-475.6159337,0.00018772,2]
[350238821,1737728151138,163.250431,0.00013973,2]
[350238822,1737728194010,2569.74559748,0.0001747,2]
[350238823,1737728209101,2569.74559748,0.0001747,2]
[350238824,1737728218060,2569.74559748,0.0001747,2]
[350238825,1737728317671,211.647726,0.00017463,2]
[350238826,1737728611024,675.65914547,0.000174,2]
[350238837,1737728928832,1000.0,0.0002,20]
[350238838,1737728940149,1000.0,0.00024,120]
[350238841,1737729007740,485.4681486,0.00017411,2]
[350238842,1737729023692,485.4681486,0.00017411,2]
[350238894,1737729032860,-485.4681486,0.00017587,2]
[350238895,1737729032871,-300.0,0.00017602,2]
[350238896,1737729032880,-24880.0,0.00017603,2]
[350238897,1737729032890,-179.373033,0.00017808,2]
[350238898,1737729032900,-382.444,0.0001814,2]
[350238899,1737729032909,-155.349277,0.00018694,2]
[350238900,1737729032920,-224.0,0.00018704,2]
[350238901,1737729032930,-152.43,0.00018712,2]
[350238902,1737729032940,-706.7832656,0.000188,2]
[350238903,1737729032950,-695.19928833,0.000188,2]
[350238904,1737729032959,-1000.0,0.00018884,2]
[350238905,1737729032969,-196.0,0.00018895,2]
[350238906,1737729032978,-156.92,0.000189,2]
[350238907,1737729032992,-151.0,0.000189,2]
[350238908,1737729033002,-152.999976,0.000189,2]
[350238909,1737729033012,-151.0,0.000189,2]
[350238910,1737729033023,-151.0,0.000189,2]
[350238911,1737729033032,-151.0,0.000189,2]
[350238912,1737729033043,-151.0,0.000189,2]
[350238913,1737729033054,-151.0,0.000189,2]
[350238914,1737729033066,-151.0,0.000189,2]
[350238915,1737729033076,-151.0,0.000189,2]
[350238916,1737729033086,-151.0,0.000189,2]
[350238917,1737729033095,-151.0,0.000189,2]
[350238918,1737729033106,-151.0,0.000189,2]
[350238919,1737729033116,-527.307651,0.000189,2]
[350238920,1737729033125,-527.307651,0.000189,2]
[350238921,1737729033134,-12215.24654656,0.000189,2]
[350238922,1737729033145,-151.0,0.000189,2]
[350238923,1737729033155,-485.029232,0.000189,2]
[350238924,1737729033165,-151.0,0.000189,2]
[350238925,1737729033176,-485.029232,0.000189,2]
[350238926,1737729033187,-393.42512147,0.000189,2]
[350238927,1737729033197,-395.0,0.00018916,2]
[350238928,1737729033206,-5603.68224889,0.00018936,5]
[350238929,1737729033216,-21975.80839862,0.00018936,5]
[350238930,1737729033226,-1000.0,0.00018937,2]
[350238931,1737729033238,-553.03489243,0.00018962,2]
[350238932,1737729033249,-1000.0,0.00018981,2]
[350238933,1737729033259,-156.533633,0.00018998,2]
[350238934,1737729033269,-729.72094554,0.00018998,2]
[350238935,1737729033279,-729.72094554,0.00018998,2]
[350238936,1737729033290,-729.72094554,0.00018998,2]
[350238937,1737729033301,-729.72094554,0.00018998,2]
[350238938,1737729033311,-729.72094554,0.00018998,2]
[350238939,1737729033321,-729.72094554,0.00018998,2]
[350238940,1737729033332,-729.72094554,0.00018998,2]
[350238941,1737729033342,-729.72094554,0.00018998,2]
[350238942,1737729033352,-729.72094554,0.00018998,2]
[350238943,1737729033362,-729.72094554,0.00018998,2]
[350238944,1737729033372,-729.72094554,0.00018998,2]
[350238945,1737729033381,-729.72094554,0.00018998,2]
[350238946,1737729033391,-729.72094554,0.00018998,2]
[350238947,1737729033401,-729.72094554,0.00018998,2]
[350238948,1737729033411,-729.72094554,0.00018998,2]
[350238949,1737729033422,-729.72094554,0.00018998,2]
[350238950,1737729033432,-729.72094554,0.00018998,2]
[350238951,1737729033443,-729.72094554,0.00018998,2]
[350238952,1737729033452,-729.72094554,0.00018998,2]
[350238953,1737729033461,-729.72094554,0.00018998,2]
[350238954,1737729033471,-729.72094554,0.00018998,2]
[350238955,1737729033484,-749.99097181,0.00018998,2]
[350238956,1737729033494,-749.99097181,0.00018998,2]
[350238957,1737729033504,-749.99097181,0.00018998,2]
[350238958,1737729033516,-749.99097181,0.00018998,2]
[350238959,1737729033525,-749.99097181,0.00018998,2]
[350238960,1737729033535,-749.99097179,0.00018998,2]
[350238961,1737729033545,-151.0,0.00018999,2]
[350238962,1737729033555,-238.817411,0.00018999,2]
[350238963,1737729033564,-151.0,0.00018999,2]
[350238964,1737729033573,-151.863062,0.00018999,2]
[350238965,1737729033583,-151.0,0.00018999,2]
[350238966,1737729033594,-224.721896,0.00018999,2]
[350238967,1737729033604,-151.0,0.00018999,2]
[350238968,1737729033614,-297.760146,0.00018999,2]
[350238969,1737729033623,-151.0,0.00018999,2]
[350238970,1737729033632,-151.0,0.00018999,2]
[350238971,1737729033641,-151.0,0.00018999,2]
[350238972,1737729033651,-151.0,0.00018999,2]